bitfinex/quotes_SOLUSD_20220128
["timestamp","ask_amount","ask_price","bid_price","bid_amount"]
[1643340670234,6.0,92.16,92.088,6.0]
[1643340670435,6.0,92.16,92.089,6.0]
[1643340670635,6.0,92.16,92.092,6.0]
[1643340671035,6.0,92.159,92.092,6.0]
[1643340671249,6.25,92.159,92.092,6.0]
[1643340671440,110.1,92.158,92.06,1.45182792]
[1643340671637,110.1,92.147,92.066,16.5853]
[1643340671836,110.1,92.147,92.04,47.1233]
[1643340671837,0.25,92.146,92.054,1.45182792]
[1643340672036,0.25,92.146,92.062,16.0637]
[1643340672238,0.25,92.146,92.071,45.08687371]
[1643340672440,6.0,92.145,92.071,45.08687371]
[1643340672640,6.0,92.145,92.072,0.25]
[1643340672837,0.25,92.144,92.072,0.25]
[1643340673639,6.0,92.14,92.072,0.25]
[1643340673837,0.25,92.139,92.072,0.25]
[1643340674041,0.25,92.139,92.081,6.0]
[1643340674236,0.25,92.139,92.082,0.25]
[1643340675037,110.35,92.158,92.071,45.08687371]
[1643340675236,110.35,92.158,92.072,0.25]
[1643340675437,6.0,92.148,92.072,0.25]
[1643340675840,110.35,92.147,92.072,0.25]
[1643340676038,6.0,92.137,92.072,0.25]
[1643340676337,0.25,92.136,92.072,0.25]
[1643340677537,6.0,92.15,92.072,0.25]
[1643340679244,0.25,92.149,92.072,0.25]
[1643340679641,0.25,92.149,92.073,2.01814269]
[1643340679843,0.25,92.149,92.074,0.25]
[1643340680243,0.25,92.157,92.075,2.01814269]
[1643340680444,0.25,92.157,92.074,0.25]
[1643340680944,0.25,92.157,92.081,6.0]
[1643340681344,0.25,92.168,92.082,0.25]
[1643340682947,6.25,92.168,92.082,0.25]
[1643340683147,6.25,92.168,92.076,0.25]
[1643340683350,6.25,92.168,92.072,0.25]
[1643340684351,110.1,92.167,92.072,0.25]
[1643340684549,6.0,92.157,92.072,0.25]
[1643340684749,0.25,92.156,92.072,0.25]
[1643340686959,0.25,92.156,92.073,1.45182792]
[1643340687173,0.25,92.156,92.074,1.45182792]
[1643340687375,6.0,92.157,92.075,0.25]
[1643340687572,6.0,92.157,92.072,1.70182792]
[1643340687972,6.0,92.157,92.071,45.08687371]
[1643340688172,110.1,92.156,92.071,45.08687371]
[1643340688376,6.0,92.146,92.071,45.08687371]
[1643340688972,6.0,92.146,92.071,46.53870163]
[1643340689173,6.0,92.155,92.071,46.53870163]
[1643340689373,6.0,92.155,92.072,0.25]
[1643340689575,16.2973,92.16,92.072,1.70182792]
[1643340689576,6.0,92.15,92.072,1.70182792]
[1643340689772,0.25,92.149,92.073,1.45182792]
[1643340689973,0.25,92.149,92.072,0.25]
[1643340691176,0.25,92.149,92.071,45.08687371]
[1643340691377,6.0,92.14,92.064,1.45182792]
[1643340691573,6.0,92.14,92.05,1.45182792]
[1643340691574,6.0,92.139,92.05,1.45182792]
[1643340691773,6.0,92.139,92.035,1.45182792]
[1643340691774,9.20669142,92.139,92.035,1.45182792]
[1643340691973,9.20669142,92.139,92.021,1.45182792]
[1643340691974,15.65,92.13,92.021,1.45182792]
[1643340692176,15.65,92.13,92.017,1.45182792]
[1643340692373,15.65,92.13,91.98,15.65]
[1643340692374,6.0,92.12,92.008,1.45182792]
[1643340692576,70.0,92.109,91.985,1.45182792]
[1643340692776,0.25,92.108,91.985,1.45182792]
[1643340692973,6.0,92.099,91.969,1.45182792]
[1643340693174,1.49278661,92.087,91.954,1.45182792]
[1643340693376,0.25,92.086,91.954,1.45182792]
[1643340693573,6.0,92.077,91.962,37.2530659]
[1643340693774,15.65,92.07,91.962,37.2530659]
[1643340693973,21.65,92.07,91.947,1.45182792]
[1643340694173,46.1472422,92.069,91.959,6.0]
[1643340694376,48.60393362,92.069,91.959,6.0]
[1643340694578,6.0,92.059,91.959,6.0]
[1643340694778,6.0,92.059,91.954,6.0]
[1643340694979,22.3197,92.05,91.955,39.49078027]
[1643340695576,22.3197,92.05,91.956,0.25]
[1643340695978,22.3197,92.05,91.955,39.49078027]
[1643340696180,0.25,92.049,91.955,39.49078027]
[1643340696378,16.3188,92.04,91.955,39.49078027]
[1643340696579,6.0,92.03,91.939,6.0]
[1643340696879,110.35,92.029,91.942,6.0]
[1643340697080,110.35,92.029,91.94,0.25]
[1643340697282,6.0,92.019,91.94,0.25]
[1643340697479,16.3232,92.01,91.94,0.25]
[1643340697680,0.25,92.018,91.94,0.25]
[1643340697981,0.25,92.009,91.934,49.84508329]
[1643340698179,110.1,92.035,91.944,6.0]
[1643340698378,0.25,92.018,91.944,6.0]
[1643340698580,0.25,92.018,91.951,6.0]
[1643340698779,0.25,92.018,91.944,6.0]
[1643340699179,0.25,92.018,91.945,0.25]
[1643340699382,16.3188,92.03,91.944,6.0]
[1643340699581,6.0,92.02,91.944,6.0]
[1643340699784,0.25,92.019,91.945,0.25]
[1643340699981,0.25,92.019,91.944,6.0]
[1643340700183,6.25,92.019,91.934,49.59508329]
[1643340700383,6.25,92.019,91.905,24.0925]
[1643340700584,6.0,92.01,91.889,1.45182792]
[1643340700882,110.35,92.009,91.882,110.1]
[1643340701104,6.0,91.999,91.892,6.0]
[1643340701282,0.25,91.998,91.9,15.65]
[1643340701582,0.25,91.998,91.91,6.0]
[1643340701782,0.25,91.998,91.91,21.65]
[1643340701984,0.25,91.998,91.92,6.0]
[1643340702185,0.25,91.998,91.921,40.53429018]
[1643340702586,6.0,92.008,91.921,40.53429018]
[1643340702784,15.65,92.04,91.922,12.69937276]
[1643340702984,6.0,92.03,91.932,6.0]
[1643340703389,6.0,92.046,91.933,13.63826165]
[1643340703592,6.0,92.046,91.941,44.55348919]
[1643340703787,23.7503,92.056,91.941,44.55348919]
[1643340703788,23.7503,92.056,91.943,6.0]
[1643340703988,23.7503,92.056,91.951,6.0]
[1643340704188,16.3183,92.04,91.951,6.0]
[1643340704388,110.35,92.039,91.951,6.0]
[1643340704692,113.30669142,92.039,91.951,6.0]
[1643340704895,2.95669142,92.038,91.941,44.55348919]
[1643340705187,6.0,92.028,91.951,6.0]
[1643340705389,0.25,92.027,91.952,0.25]
[1643340705588,0.25,92.027,91.951,6.0]
[1643340705792,0.25,92.027,91.952,0.25]
[1643340706488,0.25,92.039,91.952,0.25]
[1643340707095,6.25,92.039,91.952,0.25]
[1643340707592,6.0,92.03,91.941,44.55348919]
[1643340707792,0.25,92.029,91.952,0.25]
[1643340708393,16.3218,92.02,91.89,211.921]
[1643340708594,6.0,92.01,91.911,10.87011896]
[1643340708795,0.25,92.009,91.911,10.87011896]
[1643340708994,6.25,92.009,91.911,10.87011896]
[1643340709194,6.25,92.009,91.912,2.01237101]
[1643340709398,6.25,92.009,91.913,43.66745011]
[1643340709595,16.3244,92.0,91.913,43.66745011]
[1643340709793,16.3244,92.0,91.914,0.25]
[1643340709794,0.25,91.999,91.914,0.25]
[1643340709997,0.25,91.999,91.914,2.26237101]
[1643340710395,0.25,91.999,91.915,2.01237101]
[1643340710597,0.25,91.999,91.924,6.0]
[1643340710795,0.25,91.999,91.925,0.25]
[1643340710996,0.25,92.008,91.925,0.25]
[1643340711996,0.25,92.008,91.916,0.25]
[1643340712396,0.25,92.008,91.915,2.01237101]
[1643340712606,6.0,92.0,91.915,2.01237101]
[1643340712795,6.0,92.0,91.913,43.66745011]
[1643340712796,0.25,91.999,91.916,0.25]
[1643340712996,0.25,91.999,91.923,6.0]
[1643340713397,0.25,91.999,91.924,0.25]
[1643340715298,0.25,91.999,91.914,0.25]
[1643340716197,6.25,91.999,91.915,2.01237101]
[1643340716398,6.25,91.999,91.916,0.25]
[1643340717302,6.25,91.999,91.917,2.01237101]
[1643340717498,0.25,91.999,91.927,6.0]
[1643340717703,0.25,91.999,91.928,41.46793263]
[1643340717900,0.25,91.999,91.928,41.71793263]
[1643340718300,0.25,92.017,91.928,41.71793263]
[1643340718500,6.0,92.008,91.928,41.71793263]
[1643340718902,0.25,92.007,91.928,41.71793263]
[1643340719505,6.0,92.0,91.928,41.71793263]
[1643340719909,0.25,91.999,91.928,41.71793263]
[1643340720108,0.25,91.999,91.928,41.46793263]
[1643340720608,0.25,91.999,91.929,2.01237101]
[1643340720821,0.25,91.999,91.928,41.46793263]
[1643340721522,0.25,91.999,91.932,1.45182792]
[1643340721722,6.0,92.0,91.932,1.45182792]
[1643340722023,16.3235,92.01,91.932,1.45182792]
[1643340722024,16.3189,92.03,91.933,2.26237101]
[1643340722223,24.0588,92.029,91.935,1.45182792]
[1643340722422,24.0588,92.029,91.933,3.71419893]
[1643340722625,24.0588,92.029,91.945,1.45182792]
[1643340722829,24.0588,92.029,91.946,38.37197655]
[1643340723025,0.25,92.018,91.946,39.82380447]
[1643340724229,0.25,92.018,91.946,1.45182792]
[1643340724726,0.25,92.018,91.944,1.45182792]
[1643340725126,0.25,92.018,91.945,0.25]
[1643340725328,0.25,92.018,91.946,1.45182792]
[1643340725526,16.3168,92.05,91.95,1.45182792]
[1643340725726,1.49278661,92.051,91.955,6.0]
[1643340725927,1.49278661,92.048,91.961,39.64304747]
[1643340726227,1.49278661,92.063,91.971,6.0]
[1643340726427,1.49278661,92.064,91.971,6.0]
[1643340726626,47.7063,92.079,91.981,38.78218734]
[1643340726627,1.49278661,92.059,91.981,38.78218734]
[1643340726830,0.25,92.058,91.981,38.78218734]
[1643340727127,1.74278661,92.058,91.981,38.78218734]
[1643340727528,0.25,92.058,91.991,6.0]
[1643340727930,6.0,92.056,91.981,38.78218734]
[1643340729232,1.49278661,92.063,91.981,38.78218734]
[1643340729432,1.49278661,92.072,91.982,0.25]
[1643340729634,47.7063,92.079,91.982,0.25]
[1643340729635,1.49278661,92.076,91.982,0.25]
[1643340729833,1.49278661,92.075,91.991,6.0]
[1643340730031,1.49278661,92.076,91.992,6.0]
[1643340730231,1.49278661,92.076,91.992,6.25]
[1643340730433,47.7063,92.079,91.993,6.0]
[1643340730833,0.25,92.078,91.994,0.25]
[1643340731032,1.49278661,92.082,92.001,48.34766411]
[1643340731233,29.92737954,92.1,92.001,48.34766411]
[1643340731234,1.49278661,92.086,92.001,48.34766411]
[1643340731433,1.49278661,92.087,92.011,6.0]
[1643340731832,1.49278661,92.089,92.012,0.25]
[1643340732034,1.49278661,92.093,92.012,6.25]
[1643340732232,1.49278661,92.096,92.012,6.25]
[1643340732432,16.3069,92.1,92.012,6.25]
[1643340732433,1.49278661,92.094,92.012,6.25]
[1643340733036,1.49278661,92.096,92.012,6.25]
[1643340733234,0.25,92.093,92.012,6.25]
[1643340733533,0.25,92.095,92.012,6.25]
[1643340734035,0.25,92.096,92.023,37.97103068]
[1643340734735,0.25,92.099,92.023,37.97103068]
[1643340734939,0.25,92.099,92.0,15.65]
[1643340735135,0.25,92.099,92.012,6.0]
[1643340735336,0.25,92.099,92.013,0.25]
[1643340735337,1.49278661,92.098,92.013,0.25]
[1643340735541,0.25,92.099,92.013,0.25]
[1643340735738,0.25,92.097,92.013,0.25]
[1643340735939,0.25,92.099,92.013,0.25]
[1643340736341,0.25,92.099,92.014,2.01242656]
[1643340736641,0.25,92.099,92.025,38.58030193]
[1643340736840,0.25,92.107,92.026,0.25]
[1643340737243,0.25,92.108,92.026,0.25]
[1643340737640,16.3057,92.11,92.025,38.58030193]
[1643340737842,16.3057,92.11,92.027,2.01242656]
[1643340738044,72.9847,92.12,92.037,6.0]
[1643340738239,72.9847,92.12,92.038,0.25]
[1643340738941,72.9847,92.12,92.037,6.0]
[1643340739741,72.9847,92.12,92.038,0.25]
[1643340740346,89.2883,92.12,92.038,0.25]
[1643340740743,0.25,92.108,92.038,0.25]
[1643340741143,89.2883,92.12,92.038,0.25]
[1643340741144,0.25,92.119,92.038,0.25]
[1643340741543,0.25,92.119,92.037,6.0]
[1643340741944,0.25,92.119,92.035,6.0]
[1643340742344,0.25,92.119,92.036,0.25]
[1643340742543,1.49278661,92.123,92.041,43.49641169]
[1643340742745,24.37628661,92.132,92.041,43.49641169]
[1643340742944,24.37628661,92.132,92.051,6.0]
[1643340743147,22.8835,92.132,92.051,6.0]
[1643340743845,0.25,92.131,92.052,0.25]
[1643340745447,0.25,92.131,92.051,6.0]
[1643340745650,0.25,92.131,92.052,0.25]
[1643340746952,0.25,92.138,92.052,0.25]
[1643340750759,0.25,92.138,92.051,6.0]
[1643340752160,0.25,92.138,92.041,43.49641169]
[1643340752357,6.0,92.129,92.041,43.49641169]
[1643340752760,0.25,92.128,92.042,0.25]
[1643340752958,6.0,92.123,92.02,15.65]
[1643340753160,16.3042,92.12,92.01,15.65]
[1643340753364,1.49278661,92.108,92.0,15.65]
[1643340753559,6.0,92.098,92.0,15.65]
[1643340753760,47.0639,92.097,91.976,18.88705788]
[1643340753962,1.49278661,92.09,91.985,41.72574898]
[1643340754161,16.3129,92.07,91.98,15.65]
[1643340754463,23.4792,92.069,91.98,15.65]
[1643340755081,6.0,92.059,91.971,49.49713257]
[1643340755282,22.9534,92.058,91.971,49.49713257]
[1643340755481,6.0,92.048,91.971,49.49713257]
[1643340755884,0.25,92.047,91.95,15.65]
[1643340756081,18.93159065,92.047,91.922,1.45182792]
[1643340756283,1.49278661,92.038,91.9,15.65]
[1643340756482,132.50467084,92.046,91.893,48.5036]
[1643340756483,16.3245,92.0,91.893,48.5036]
[1643340756682,16.3245,92.0,91.889,2.01242656]
[1643340756882,6.0,91.99,91.9,15.65]
[1643340757283,0.25,91.989,91.901,2.26242656]
[1643340758087,0.25,91.989,91.902,2.01242656]
[1643340758285,0.25,91.989,91.903,0.25]
[1643340758487,0.25,92.019,91.913,45.93984626]
[1643340758685,0.25,92.019,91.92,15.65]
[1643340758887,0.25,92.035,91.923,6.0]
[1643340759086,6.0,92.026,91.931,40.55056082]
[1643340759286,0.25,92.025,91.932,0.25]
[1643340759486,0.25,92.025,91.93,6.0]
[1643340759685,0.25,92.025,91.91,2.01249685]
[1643340759686,6.0,92.023,91.91,17.66249685]
[1643340759887,0.25,92.022,91.911,0.25]
[1643340760088,6.0,92.014,91.911,0.25]
[1643340760289,24.4642,92.013,91.911,0.25]
[1643340760688,6.0,92.003,91.911,0.25]
[1643340760887,16.3249,92.0,91.911,0.25]
[1643340761288,110.35,91.999,91.911,0.25]
[1643340762092,16.3249,92.0,91.911,0.25]
[1643340762693,16.3249,92.0,91.912,2.01249685]
[1643340762891,16.3249,92.0,91.913,0.25]
[1643340763293,16.3249,92.0,91.914,2.01249685]
[1643340763492,16.3249,92.0,91.92,6.0]
[1643340763892,16.3249,92.0,91.921,0.25]
[1643340764093,16.3249,92.0,91.92,6.0]
[1643340764391,16.3249,92.0,91.921,0.25]
[1643340764592,16.3249,92.0,91.924,6.0]
[1643340764791,16.3249,92.0,91.925,0.25]
[1643340765593,6.0,92.003,91.925,0.25]
[1643340765792,0.25,92.002,91.926,2.01249699]
[1643340765991,24.2142,92.013,91.936,6.0]
[1643340766191,0.25,92.012,91.937,39.80600607]
[1643340766393,0.25,92.012,91.937,42.06850306]
[1643340766793,16.321,92.03,91.937,42.06850306]
[1643340768192,0.25,92.029,91.937,42.06850306]
[1643340768592,16.321,92.03,91.937,42.06850306]
[1643340768792,16.321,92.03,91.938,2.00629809]
[1643340768998,16.321,92.03,91.948,6.0]
[1643340769394,16.321,92.03,91.949,0.25]
[1643340769595,16.321,92.03,91.949,2.25629809]
[1643340769795,0.25,92.029,91.949,2.25629809]
[1643340769995,24.9835,92.035,91.959,6.0]
[1643340770199,16.3158,92.06,91.96,15.65]
[1643340770395,47.7454,92.063,91.96,23.90629809]
[1643340770597,0.25,92.055,91.962,6.0]
[1643340770798,0.25,92.055,91.963,0.25]
[1643340770996,0.25,92.055,91.972,36.49825309]
[1643340771196,0.25,92.055,91.98,15.65]
[1643340771398,0.25,92.055,91.982,6.0]
[1643340771600,0.25,92.055,91.981,0.25]
[1643340771798,46.7461,92.098,91.99,6.0]
[1643340771799,0.25,92.063,91.99,6.0]
[1643340772200,6.0,92.088,91.991,0.25]
[1643340772399,0.25,92.087,91.991,6.25]
[1643340773324,16.3115,92.08,91.991,6.25]
[1643340773700,6.0,92.088,91.991,6.25]
[1643340773904,6.0,92.088,91.992,2.00629809]
[1643340774300,46.7461,92.098,92.002,6.0]
[1643340774503,46.7461,92.098,92.003,45.38888932]
[1643340774701,46.7461,92.098,92.003,47.64518741]
[1643340774901,24.0534,92.133,92.013,6.0]
[1643340775102,47.865,92.132,92.02,15.65]
[1643340775300,47.865,92.132,92.021,110.35]
[1643340775502,47.865,92.132,92.031,42.31440453]
[1643340775802,47.865,92.132,92.032,110.35]
[1643340776000,47.865,92.132,92.042,6.0]
[1643340776403,0.25,92.118,92.043,0.25]
[1643340776802,0.25,92.118,92.05,6.0]
[1643340777205,0.25,92.118,92.03,15.65]
[1643340777402,23.0499,92.118,92.041,0.25]
[1643340777603,23.0499,92.118,92.041,6.0]
[1643340777803,23.0499,92.118,92.042,0.25]
[1643340780009,23.0499,92.118,92.041,6.0]
[1643340780209,6.0,92.108,92.02,15.65]
[1643340780409,23.0499,92.118,92.031,0.25]
[1643340780610,0.25,92.107,92.031,0.25]
[1643340780830,23.0499,92.118,92.031,0.25]
[1643340780831,110.1,92.117,92.031,0.25]
[1643340781031,110.1,92.117,92.03,6.0]
[1643340781231,6.0,92.107,92.01,15.65]
[1643340781437,6.0,92.107,91.995,22.91585235]
[1643340781438,6.0,92.107,92.0,15.65]
[1643340781633,23.47,92.106,92.0,15.65]
[1643340781935,23.47,92.106,92.001,0.25]
[1643340782336,16.3065,92.1,92.001,41.77250849]
[1643340782532,16.3065,92.1,92.011,6.0]
[1643340782735,6.0,92.09,91.995,20.90955426]
[1643340782933,6.0,92.09,91.982,12.83133874]
[1643340783134,0.25,92.089,91.992,6.0]
[1643340783333,0.25,92.089,91.993,0.25]
[1643340783534,0.25,92.089,91.993,40.50794959]
[1643340783835,0.25,92.089,91.993,0.25]
[1643340783836,16.3101,92.08,91.993,0.25]
[1643340784235,0.25,92.079,91.993,0.25]
[1643340785637,0.25,92.079,91.993,6.25]
[1643340785836,0.25,92.079,91.993,6.0]
[1643340786640,0.25,92.079,91.994,2.00629809]
[1643340787042,0.25,92.079,91.993,6.0]
[1643340787241,0.25,92.079,92.002,6.0]
[1643340787639,0.25,92.087,92.003,0.25]
[1643340787839,0.25,92.098,92.003,2.25629809]
[1643340788041,0.25,92.098,92.01,6.0]
[1643340788239,0.25,92.098,92.013,6.0]
[1643340788739,0.25,92.098,92.014,6.25]
[1643340788941,23.0101,92.099,92.014,6.25]
[1643340789139,23.0101,92.099,92.014,6.0]
[1643340789340,23.0101,92.099,92.015,0.25]
[1643340790242,0.25,92.098,92.012,0.25]
[1643340795046,0.25,92.098,92.011,6.0]
[1643340795246,6.0,92.089,92.011,6.0]
[1643340795451,24.9038,92.088,92.01,6.0]
[1643340795647,25.1538,92.088,91.992,45.82221512]
[1643340796047,25.1538,92.088,92.01,6.0]
[1643340796249,25.1538,92.088,92.011,0.25]
[1643340796653,25.1538,92.088,92.01,6.0]
[1643340796850,25.1538,92.088,92.011,0.25]
[1643340797052,26.64658661,92.088,92.01,6.0]
[1643340797550,1.49278661,92.087,92.01,6.0]
[1643340797749,1.74278661,92.086,92.011,0.25]
[1643340798150,0.25,92.086,92.011,0.25]
[1643340798951,0.25,92.087,92.011,0.25]
[1643340800553,0.25,92.087,92.01,6.0]
[1643340800752,0.25,92.087,92.011,0.25]
[1643340801354,0.25,92.087,92.01,6.0]
[1643340801554,1.74278661,92.087,92.011,0.25]
[1643340801952,1.49278661,92.084,91.992,45.82221512]
[1643340802352,1.49278661,92.08,91.992,45.82221512]
[1643340802753,0.25,92.079,91.992,45.82221512]
[1643340803353,0.25,92.079,92.01,6.0]
[1643340803556,3.91108017,92.078,92.01,6.0]
[1643340804053,3.91108017,92.078,91.973,23.2674]
[1643340804253,1.49278661,92.076,91.973,23.2674]
[1643340804453,1.49278661,92.077,91.973,23.2674]
[1643340804655,3.91108017,92.078,91.973,23.2674]
[1643340804656,1.49278661,92.073,91.973,23.2674]
[1643340804854,1.49278661,92.073,92.001,0.25]
[1643340805055,0.25,92.072,92.001,0.25]
[1643340805255,0.25,92.073,92.001,0.25]
[1643340805757,5.40386678,92.078,92.001,0.25]
[1643340805758,0.25,92.077,92.001,0.25]
[1643340806054,0.25,92.077,91.994,36.15490288]
[1643340806255,0.25,92.077,92.001,0.25]
[1643340806558,1.74278661,92.077,92.001,0.25]
[1643340806755,5.40386678,92.076,92.001,0.25]
[1643340807163,1.49278661,92.072,91.973,23.2674]
[1643340807356,0.25,92.071,91.977,16.6368]
[1643340807559,1.49278661,92.067,91.977,16.6368]
[1643340807756,1.49278661,92.065,91.977,16.6368]
[1643340808055,1.49278661,92.057,91.972,2.00629809]
[1643340808257,0.25,92.056,91.972,2.00629809]
[1643340808460,1.49278661,92.055,91.972,2.00629809]
[1643340808658,0.25,92.056,91.972,2.00629809]
[1643340809665,3.91108017,92.055,91.972,2.00629809]
[1643340809860,0.25,92.054,91.972,2.00629809]
[1643340810864,1.49278661,92.053,91.97,15.65]
[1643340811062,1.49278661,92.053,91.96,48.26823862]
[1643340811063,6.0,92.043,91.96,63.91823862]
[1643340811262,0.25,92.042,91.96,63.91823862]
[1643340812265,0.25,92.042,91.96,15.65]
[1643340812563,6.0,92.034,91.96,15.65]
[1643340812763,0.25,92.033,91.96,15.65]
[1643340812963,6.0,92.031,91.96,15.65]
[1643340813263,0.25,92.03,91.96,15.65]
[1643340813663,6.0,92.023,91.96,15.65]
[1643340813862,0.25,92.022,91.96,15.65]
[1643340815083,0.25,92.032,91.96,15.65]
[1643340816388,3.91108017,92.031,91.96,15.65]
[1643340816786,0.25,92.03,91.96,15.65]
[1643340818089,3.91108017,92.031,91.961,112.35629809]
[1643340818289,3.91108017,92.031,91.961,2.25629809]
[1643340818489,3.91108017,92.031,91.962,2.00629809]
[1643340818688,3.91108017,92.053,91.962,2.00629809]
[1643340818888,3.91108017,92.053,91.963,0.25]
[1643340819289,3.91108017,92.053,91.963,2.25629809]
[1643340819489,23.7503,92.052,91.963,2.25629809]
[1643340820291,0.25,92.051,91.963,2.25629809]
[1643340821096,0.25,92.051,91.974,48.39115186]
[1643340821293,0.25,92.051,91.975,0.25]
[1643340821696,3.91108017,92.05,91.975,0.25]
[1643340822397,3.91108017,92.05,91.974,48.39115186]
[1643340822896,3.91108017,92.05,91.975,0.25]
[1643340823294,0.25,92.049,91.975,0.25]
[1643340824697,3.91108017,92.048,91.975,0.25]
[1643340824896,0.25,92.047,91.975,0.25]
[1643340825496,0.25,92.047,91.984,6.0]
[1643340825896,0.25,92.047,91.985,0.25]
[1643340826297,0.25,92.047,91.974,48.39115186]
[1643340826697,0.25,92.047,91.984,6.0]
[1643340827098,0.25,92.047,91.974,48.39115186]
[1643340827299,0.25,92.047,91.984,6.0]
[1643340827898,0.25,92.047,91.974,48.39115186]
[1643340828299,0.25,92.047,91.984,6.0]
[1643340828902,3.91108017,92.046,91.984,6.0]
[1643340829302,0.25,92.045,91.984,6.0]
[1643340831505,3.91108017,92.044,91.984,6.0]
[1643340831906,0.25,92.043,91.984,6.0]
[1643340832506,0.25,92.043,91.97,21.65]
[1643340833906,0.25,92.043,91.971,6.0]
[1643340834110,0.25,92.043,91.98,6.0]
[1643340834509,3.91108017,92.042,91.98,6.0]
[1643340834908,0.25,92.041,91.98,6.0]
[1643340835314,3.91108017,92.042,91.98,6.0]
[1643340835510,3.91108017,92.042,91.981,0.25]
[1643340836709,3.91108017,92.042,91.971,0.25]
[1643340836910,3.91108017,92.042,91.98,6.0]
[1643340837112,3.91108017,92.042,91.97,15.65]
[1643340837410,1.49278661,92.035,91.946,23.2521]
[1643340837610,6.0,92.025,91.947,0.25]
[1643340837814,23.6839,92.024,91.947,0.25]
[1643340838011,1.49278661,92.023,91.947,0.25]
[1643340838414,23.6839,92.024,91.947,0.25]
[1643340838415,1.74278661,92.022,91.947,0.25]
[1643340838814,16.3211,92.02,91.941,0.25]
[1643340839214,0.25,92.019,91.941,0.25]
[1643340839620,22.9964,92.021,91.941,0.25]
[1643340839915,22.9964,92.021,91.942,2.00629809]
[1643340840318,22.9964,92.021,91.943,0.25]
[1643340840518,3.91108017,92.02,91.943,0.25]
[1643340841344,0.25,92.019,91.941,0.25]
[1643340843548,3.91108017,92.018,91.941,0.25]
[1643340843847,0.25,92.017,91.941,43.92664347]
[1643340844245,0.25,92.017,91.941,0.25]
[1643340845246,0.25,92.017,91.941,41.73678199]
[1643340847052,3.91108017,92.016,91.941,41.73678199]
[1643340847252,0.25,92.015,91.941,41.73678199]
[1643340848053,0.25,92.015,91.941,0.25]
[1643340849253,1.49278661,92.028,91.942,2.00619714]
[1643340849454,23.5201,92.064,91.95,6.0]
[1643340849655,23.9787,92.077,91.97,195.6]
[1643340849854,23.9787,92.077,91.981,42.29668526]
[1643340850056,23.9787,92.077,91.991,6.0]
[1643340850359,23.9787,92.077,92.0,15.65]
[1643340850956,23.7356,92.076,92.0,15.65]
[1643340851155,23.9856,92.076,92.0,15.65]
[1643340851554,23.9856,92.076,92.01,6.0]
[1643340856660,23.9856,92.076,92.0,15.65]
[1643340857059,23.9856,92.076,92.01,6.0]
[1643340857260,16.3123,92.07,92.01,6.0]